Workbook

Sheet Page 1 - Table 1
C3: CRESCENT REALTY
C5: Alex Galuz
C6: SENIOR ASSOCIATE
C7: 23975 Park Sorrento, Suite 110 Calabasas, CA 91302 23975 Park Sorrento, Suite 110 Calabasas, CA 91302
C8: Calabasas, CA 91302
C9: Tel: (310) 291-2667 Fax: (877) 320-5662
C10: email: Alex@galuzgroup.com
C11: www.galuzgroup.com
C12: Property Address: | D12: 2731 Beverly Bl.
D13: Los Angeles, CA 90057
C15: LIST PRICE | D15: 8995000
C20: INVESTMENT SUMMARY | I20: INVESTMENT HIGHLIGHT
C22: Down Payment: | D22: =D15*E22 -> 4047750 | E22: 0.45 | I22: All Units have their own bathrooms and closets. Many units have city and Hollywood sign views.
C23: Year Built | D23: 1927
C24: Zoning | D24: LAC2 | I24: SCHEDULED INCOME | M24: Current | O24: Proforma
C25: Units | D25: 66 | I25: Units | J25: Beds | K25: Baths | L25: Units S.F | M25: Rent Average | N25: Monthly Income | O25: Rent | P25: Monthly Income
C26: Appx. Lot Size: | D26: 6826 | E26: SQ. FT | I26: 63 | J26: Room | K26: 1 | L26: 220 | M26: 1180 | N26: =M26*I26 -> 74340 | O26: 1350 | P26: =O26*I26 -> 85050
C27: Appx. Bldg NRSF: | D27: 24795 | E27: SQ. FT | I27: 2 | J27: 1 | K27: 1 | L27: 750 | M27: 1612 | N27: =M27*I27 -> 3224 | O27: 1800 | P27: =O27*I27 -> 3600
C28: Cost per NRSF: | D28: =D15/D27 -> 362.774753 | I28: 1 | J28: Comm. | K28: 1 | L28: 2500 | M28: 4561 | N28: =M28*I28 -> 4561 | O28: 5000 | P28: =O28*I28 -> 5000
C29: Cost per Unit: | D29: =D15/D25 -> 136287.8788 | O29: 1900 | P29: 0
C30: Expense/ NRSF: | D30: =P52/D27 -> 13.11684281
C31: Expense/ Unit: | D31: =P52/D25 -> 4927.759357 | I31: Total Schedule Rent: | N31: =SUM(N26:N30) -> 82125 | P31: =SUM(P26:P30) -> 93650
D32: Current | E32: Pro Forma | I32: Laundry: | N32: 0 | P32: 500
C33: GRM: | D33: =D15/N35 -> 9.127346525 | E33: =D15/P35 -> 7.961586121 | I33: Other Income: | N33: 0 | P33: 0
C34: CAP: | D34: =E45/D15 -> 0.07011705197 | E34: =J45/D15 -> 0.08567803029 | I34: Monthly Gross Income: | N34: =N31+N32+N33 -> 82125 | P34: =P31+P32+P33 -> 94150
C35: ROI: | D35: =E49/D22 -> 0.08334137473 | E35: =J49/D22 -> 0.1179213266 | I35: Annual Gross Income: | N35: =N34*12 -> 985500 | P35: =P34*12 -> 1129800
C39: ANNUAL INCOME | N39: ESTIMATED ANNUAL EXPENSE
E40: Current | J40: Pro Forma | N40: ITEM | P40: AMOUNT
C41: Scheduled Gross Income: | E41: =N35 -> 985500 | J41: =P35 -> 1129800 | N41: Taxes: | P41: =D15*0.01245849 -> 112064.1175
C42: Less Vacancy Reserve Rate: | E42: =E41*F42 -> 29565 | F42: 0.03 | I42: * | J42: =J41*L42 -> 33894 | L42: 0.03 | N42: Insurance: | P42: 48000
C43: Gross Operating Income: | E43: =E41-E42 -> 955935 | F43: =E43/E41 -> 0.97 | J43: =J41-J42 -> 1095906 | L43: =J43/J41 -> 0.97 | N43: Utilities: | P43: 65000
C44: Less Expenses: | E44: =P52 -> 325232.1175 | F44: =E44/E41 -> 0.3300173694 | I44: * | J44: =P52 -> 325232.1175 | L44: =J44/J41 -> 0.2878669831 | N44: Maintenance & Repair's: | P44: 25000
C45: Net Operating Income: | E45: =E43-E44 -> 630702.8825 | F45: =E45/E41 -> 0.6399826306 | J45: =J43-J44 -> 770673.8825 | L45: =J45/J41 -> 0.6821330169 | N45: Trash: | P45: 10000
C46: Less Debt Service: | E46: =J54*12 -> 355935.1603 | F46: =E46/E41 -> 0.3611721565 | J46: =J54*12 -> 355935.1603 | L46: =J46/J41 -> 0.3150426273 | N46: Pest: | P46: 3000
C47: Pre-Tax Cash Flow: | E47: =E45-E46 -> 274767.7222 | F47: =E47/D53 -> 0.06788159402 | I47: ** | J47: =J45-J46 -> 414738.7222 | L47: =J47/D53 -> 0.1024615458 | N47: Misc/Reserves: | P47: 7000
C48: Plus Principal Reduction: | E48: =PPMT(J53,1,J52,-D54) -> 62577.32737 | F48: =E48/D53 -> 0.01545978071 | J48: =PPMT(J53,1,J52,-D54) -> 62577.32737 | L48: =J48/D53 -> 0.01545978071 | N48: Off site Management | P48: 29668
C49: Total Return Before Taxes: | E49: =E47+E48 -> 337345.0496 | F49: =E49/D53 -> 0.08334137473 | I49: ** | J49: =J47+J48 -> 477316.0496 | L49: =J49/D53 -> 0.1179213266 | N49: On site Management | P49: 24000
C50: *As a Percent of Scheduled Gross Income ** As a Percent of Down Payment | N50: Elevator | P50: 1500
C51: FINANCING INFORMATION
C52: Price: | D52: =D15 -> 8995000 | F52: Terms: | J52: 30 | K52: Year | N52: TOTAL EXPENSES: | P52: =SUM(P41,P42:P51) -> 325232.1175
C53: Down Payment: | D53: =D22 -> 4047750 | F53: Interest Rate: | J53: 0.06 | N53: Expense / NRSF: | P53: =P52/D27 -> 13.11684281
C54: Loan Amount: | D54: =D52-D53 -> 4947250 | F54: Monthly Payment: | J54: =PMT(J53/12,J52*12,-D54) -> 29661.26336 | N54: Expense / Unit: | P54: =P52/D25 -> 4927.759357
C56: This information has been secured from sources we believe to be reliable, but we make no representation or warranties, expressed or implied as to the accuracy of the information
C57: References to square footage or age are approximate. Buyer must independently verify the information and bears all risks for any accurancies. Expenses are estimates.

Sheet Rent Roll Sample 2 - Table 1
A12: Unit # | B12: Status | C12: Section 8 | D12: Unit Type | E12: Unit Size | F12: Move In | G12: Curret Rent | H12: Market Rent | I12: Notes
A15: 100 | D15: Retail | G15: 4561
A16: Loft | D16: Loft
A17: 101 | D17: Bachelor | G17: 1225
A18: 102 | D18: Bachelor | G18: 1200
A19: 103 | D19: Bachelor | G19: 1100
A20: 104 | C20: Manager | D20: 1 bedroom | G20: 1500
A21: 105 | D21: big 1 bedroom | G21: 1696
A22: 201 | D22: Bachelor | G22: 1200
A23: 202 | D23: Bachelor | G23: 1200
A24: 203 | D24: Bachelor | G24: 1200
A25: 204 | D25: Bachelor | G25: 1200
A26: 205 | D26: Bachelor | G26: 759.62
A27: 206 | D27: Bachelor | G27: 1250
A28: 207 | D28: Bachelor | G28: 1200
A29: 208 | D29: Bachelor | G29: 1100
A30: 209 | D30: Bachelor | G30: 1050
A31: 210 | D31: Bachelor | G31: 1250
A32: 211 | D32: Bachelor | G32: 1250
A33: 212 | D33: Bachelor | G33: 1200
A34: 214 | D34: Bachelor | G34: 1250
A35: 215 | D35: Bachelor | G35: 1248
A36: 216 | D36: Bachelor | G36: 1200
A37: 217 | D37: Bachelor | G37: 1250
A38: 218 | D38: Bachelor | G38: 1225
A39: 219 | D39: Bachelor | G39: 1250
A40: 220 | D40: Bachelor | G40: 1200
A41: 221 | D41: Bachelor | G41: 1200
A42: 301 | D42: Bachelor | G42: 1100
A43: 302 | D43: Bachelor | G43: 1075
A44: 303 | D44: Bachelor | G44: 1200
A45: 304 | D45: Bachelor | G45: 1200
A46: 305 | D46: Bachelor | G46: 1200
A47: 306 | D47: Bachelor | G47: 1248
A48: 307 | D48: Bachelor | G48: 1200
A49: 308 | D49: Bachelor | G49: 1166
A50: 309 | D50: Bachelor | G50: 1200
A51: 310 | D51: Bachelor | G51: 1195
A52: 311 | D52: Bachelor | G52: 1250
A53: 312 | D53: Bachelor | G53: 1200
A54: 314 | D54: Bachelor | G54: 1200
A55: 315 | D55: Bachelor | G55: 1200
A56: 316 | D56: Bachelor | G56: 1200
A57: 317 | D57: Bachelor | G57: 1200
A58: 318 | D58: Bachelor | G58: 1200
A59: 319 | D59: Bachelor | G59: 1200
A60: 320 | D60: Bachelor | G60: 1100
A61: 321 | D61: Bachelor | G61: 1200
A62: 401 | D62: Bachelor | G62: 1166
A63: 402 | D63: Bachelor | G63: 1200
A64: 403 | D64: Bachelor | G64: 1200
A65: 404 | D65: Bachelor | G65: 1272
A66: 405 | D66: Bachelor | G66: 1200
A67: 406 | D67: Bachelor | G67: 1250
A68: 407 | D68: Bachelor | G68: 1166
A69: 408 | D69: Bachelor | G69: 1200
A70: 409 | D70: Bachelor | G70: 1168.65
A71: 410 | D71: Bachelor | G71: 1195
A72: 411 | D72: Bachelor | G72: 1200
A73: 412 | D73: Bachelor | G73: 1100
A74: 414 | D74: Bachelor | G74: 1200
A75: 415 | D75: Bachelor | G75: 1200
A76: 416 | D76: Bachelor | G76: 1200
A77: 417 | D77: Bachelor | G77: 1250
A78: 418 | D78: Bachelor | G78: 1200
A79: 419 | D79: Bachelor | G79: 759.62
A80: 420 | D80: Bachelor | G80: 1250
A81: 421 | D81: Bachelor | G81: 1050
A82: TOTAL | G82: =SUM(G15:G81) -> 82125.89 | H82: =SUM(H17:H81) -> 0

Sheet Sheet1
